Cogmind - Beta 14 @@@ ROGUE MODE // 2024.09.27 @ 21:20:58 Player: Lunace Result: Destroyed by Dirty Bomb Trap Performance ------------- Evolutions (6) 3000 Regions Visited (22) 4400 Robots Destroyed (184) 920 Value Destroyed (6015) 6015 Prototype IDs (83) 1660 Alien Tech Used (2) 400 Bonus (306) 306 TOTAL SCORE: 16701 Bonus ------- High Alert Combat Kills 743 Follower Combat Kills 679 Entered Garrisons 200 Registered with UFD 300 Met Zhirov 300 Met Warlord at Base 500 MAIN.C Attacked Warlord 500 Friendly Fire -2916 Cogmind --------- Core Integrity 0/1150 Matter 261/300 Energy 1/100 System Corruption 5% Temperature Cool (0) Movement Core (100) Ox1 Location -4/Warlord Parts ------- > --- POWER (2) -------- (None) > --- PROPULSION (6) --- Gyrokinetic Inverter Gyrokinetic Inverter > --- UTILITY (9) ------ Spectral Analyzer Advanced Signal Interpreter Experimental Targeting Computer Advanced Target Analyzer System Mapper Advanced System Shield Advanced Trap Extractor (0/8) > --- WEAPON (2) ------- (None) > --- INVENTORY (5) ---- Gyrokinetic Inverter Advanced Trap Extractor (8/8 Fire) Trap Reconfigurator Transdimensional Reconstructor Peak State ------------ > --- POWER ------------ Vortex Chain Reactor > --- PROPULSION ------- Gyrokinetic Inverter Gyrokinetic Inverter Gyrokinetic Inverter Gyrokinetic Inverter Gyrokinetic Inverter Cooled Antigrav System > --- UTILITY ---------- Advanced Cooling System Medium Storage Unit Spectral Analyzer Improved Sensor Array Advanced Signal Interpreter Experimental Targeting Computer Advanced Target Analyzer System Mapper Advanced System Shield > --- WEAPON ----------- Micro-nuke Launcher Force Lance > --- INVENTORY -------- Gyrokinetic Inverter Advanced Transmission Jammer Advanced Trap Extractor Advanced Trap Extractor Trap Reconfigurator Transdimensional Reconstructor Vortex Driver Vortex Driver Plasma Cutter [Rating: 131] Favorites ----------- Power Improved Ion Engine Engine Improved Ion Engine Power Core Neutrino Core Reactor Light Antimatter Reactor Propulsion Gyrokinetic Inverter Treads Light Treads Hover Unit Gyrokinetic Inverter Utility Hacking Suite Device Improved Heat Sink Storage Medium Storage Unit Processor Enhanced Optical Array Hackware Hacking Suite Protection Improved Light Armor Plating Weapon Assault Rifle Energy Gun Wave Gun Energy Cannon Vortex Driver Ballistic Gun Assault Rifle Ballistic Cannon Mass Driver Launcher Mini Grenade Launcher Special Weapon Plasma Cutter Impact Weapon Makeshift Hammer Slashing Weapon Scythe Piercing Weapon Force Lance Special Melee Weapon Dirty Datajack Build | -11 -10 -10 -9 -9 -9 -8 -8 -8 -8 -8 -8 -8 -6 -5 -5 -5 -5 -4 -4 -4 -4 -4 ------- Run | Yrd Mat Min Mat Min Exi Min Mat Gar Mat Sto Rec Scr Fac Fac Upp Upp Zhi Pro Fac Upp Upp War Slots Evolved 12 | . . . 2 . . . 2 . . . . . 4 2 . . . . 2 . . . Power 1 | . . . . . . . . . . . . . 1 . . . . . . . . . Propulsion 4 | . . . 1 . . . 1 . . . . . 1 1 . . . . . . . . Utility 7 | . . . 1 . . . 1 . . . . . 2 1 . . . . 2 . . . Weapon . | . . . . . . . . . . . . . . . . . . . . . . . Parts Attached 182 | 7 8 1 21 4 1 1 1 10 2 25 1 1 16 10 1 5 3 7 29 4 6 18 Power 19 | 1 1 . 2 . . . . 2 . 3 . . 3 . . 1 . 2 2 1 . 1 Engine 9 | 1 1 . 2 . . . . 1 . 3 . . 1 . . . . . . . . . Core 5 | . . . . . . . . 1 . . . . 2 . . 1 . 1 . . . . Reactor 5 | . . . . . . . . . . . . . . . . . . 1 2 1 . 1 Propulsion 34 | 2 2 . 4 . . . 1 1 2 6 . . 5 2 . . . 1 4 . 1 3 Treads 17 | 2 2 . 4 . . . 1 1 2 5 . . . . . . . . . . . . Leg . | . . . . . . . . . . . . . . . . . . . . . . . Wheel . | . . . . . . . . . . . . . . . . . . . . . . . Hover 17 | . . . . . . . . . . 1 . . 5 2 . . . 1 4 . 1 3 Flight . | . . . . . . . . . . . . . . . . . . . . . . . Utility 91 | 2 3 . 10 3 . 1 . 4 . 10 1 1 7 5 1 2 3 3 19 3 5 8 Device 46 | 1 1 . 3 2 . . . 2 . 4 . . 1 1 1 2 1 2 12 3 5 5 Storage 9 | 1 . . 2 . . . . . . 2 . . 4 . . . . . . . . . Processor 10 | . . . . . . . . 1 . . . . 1 3 . . . 1 2 . . 2 Hackware 10 | . . . 1 . . . . . . 1 . . 1 1 . . 1 . 4 . . 1 Protection 16 | . 2 . 4 1 . 1 . 1 . 3 1 1 . . . . 1 . 1 . . . Artifact . | . . . . . . . . . . . . . . . . . . . . . . . Weapon 38 | 2 2 1 5 1 1 . . 3 . 6 . . 1 3 . 2 . 1 4 . . 6 Energy Gun 4 | . . . . . . . . 1 . 2 . . . . . . . . . . . 1 Energy Cannon 4 | . . . . . . . . . . . . . . . . . . . . . . 4 Ballistic Gun 5 | 2 1 . 2 . . . . . . . . . . . . . . . . . . . Ballistic Cannon 5 | . . . . . . . . . . . . . 1 1 . 1 . . 2 . . . Launcher 11 | . 1 1 1 1 . . . 1 . 2 . . . 2 . . . 1 . . . 1 Special Weapon 1 | . . . . . . . . 1 . . . . . . . . . . . . . . Impact Weapon 3 | . . . 2 . 1 . . . . . . . . . . . . . . . . . Slashing Weapon 2 | . . . . . . . . . . 2 . . . . . . . . . . . . Piercing Weapon 2 | . . . . . . . . . . . . . . . . . . . 2 . . . Special Melee Weapon 1 | . . . . . . . . . . . . . . . . 1 . . . . . . Unidentified Prototypes 18 | . . . 1 . . . . . . 2 . . . 1 . 1 3 . 1 . . 9 Parts Lost 31 | . . . 1 . . 1 . 1 . 5 . . 1 1 1 5 . . 4 . 2 9 Power 4 | . . . . . . . . . . 2 . . . . . . . . . . 1 1 Propulsion 6 | . . . . . . . . . . . . . . . . 2 . . . . . 4 Utility 16 | . . . . . . 1 . 1 . 2 . . 1 1 1 3 . . 3 . 1 2 Weapon 5 | . . . 1 . . . . . . 1 . . . . . . . . 1 . . 2 Highest Loss Streak 9 | . . . 1 . . 1 . 1 . 3 . . 1 1 1 2 . . 3 . 2 9 To Critical Strikes . | . . . . . . . . . . . . . . . . . . . . . . . Average Slot Usage (%) 92 | . 99 100 99 100 100 100 90 78 81 81 100 100 94 93 87 65 55 80 92 100 97 89 Engine 7 | . 14 14 11 11 11 11 9 6 9 8 9 9 5 5 5 1 . . . . . 2 Core 1 | . . . . . . . . 1 . . . . 6 5 5 3 5 5 5 1 . . Reactor 1 | . . . . . . . . . . . . . . . . . . 4 4 8 8 4 Treads 20 | . 27 28 32 33 33 33 36 29 27 29 36 36 . . . . . . . . . . Hover 10 | . . . . . . . . . . . . . 30 33 35 25 23 28 29 31 31 30 Device 8 | . 13 . 5 8 11 . . . . 1 9 9 12 12 13 9 . 4 12 15 15 13 Storage 9 | . 14 14 11 11 11 11 9 9 9 13 9 9 6 5 5 5 5 5 5 5 5 4 Processor 3 | . . . . . . . . . . . . . 3 8 5 5 5 10 11 15 15 16 Hackware 7 | . . . 8 11 11 11 9 9 9 10 9 9 12 6 2 . 2 5 8 10 9 6 Protection 3 | . . 14 7 2 . 11 9 5 9 3 8 9 . . . . . . 1 . . . Energy Gun 2 | . . . . . . . . 1 9 8 9 9 . . . . . . . . . . Ballistic Gun 4 | . 27 14 15 . . . . . . . . . . . . . . . . . . . Ballistic Cannon 1 | . . . . . . . . . . . . . 5 5 5 5 5 5 5 5 5 . Launcher 2 | . . 14 1 11 11 11 9 7 9 3 . . . 2 5 3 . 3 1 . . . Impact Weapon 1 | . . . 5 11 11 11 9 7 . . . . . . . . . . . . . . Slashing Weapon 2 | . . . . . . . . . . 2 9 9 6 2 . . . . . . . . Peak Build Rating 131 | 7 7 7 15 16 19 19 20 46 46 49 39 41 75 96 84 84 67 90 114 116 116 131 Average Rating 48 | 5 6 7 13 16 17 18 20 34 46 38 38 39 68 85 83 62 55 81 102 115 112 107 On Entrance 47 | . 7 7 7 15 16 19 19 20 46 46 36 39 40 70 84 84 52 59 90 114 116 103 Naked Turns . | . . . . . . . . . . . . . . . . . . . . . . . Heaviest Build 75 | 13 17 18 25 24 23 25 25 44 44 75 75 62 55 49 49 49 25 44 53 57 56 65 Greatest Support 110 | 40 40 40 60 60 60 60 80 110 110 110 80 80 55 69 55 55 33 44 66 66 66 68 Greatest Overweight (x) 2 | 1 . . . . . . . . . . . . . . . . . . . . . 2 Average Overweight (x) . | . . . . . . . . . . . . . . . . . . . . . . . Largest Inventory Capacity 20 | 8 8 8 10 10 10 10 10 10 10 20 20 20 20 10 10 10 10 10 10 10 10 10 Average Capacity 12 | 7 8 8 9 10 10 10 10 10 10 16 20 20 12 10 10 10 10 10 10 10 10 9 Most Carried 20 | . 8 8 10 10 10 10 8 10 10 14 15 20 20 10 10 10 10 10 10 10 9 10 Average Carried 9 | . 3 7 9 10 10 9 8 9 10 11 14 17 9 9 10 9 9 8 8 8 8 8 Final Capacity 20 | 8 8 8 10 10 10 10 10 10 10 20 20 20 10 10 10 10 10 10 10 10 10 5 Final Carried 20 | . 8 7 10 10 10 9 8 10 10 12 15 20 8 10 10 10 10 9 8 9 9 4 Class Distribution -------------------- 69% | Mutant 9% | Hacker-Mutant 9% | Hacker-Ninja 4% | Scavenger-Mutant 3% | Trapper-Ninja Dominant Class ---------------- Mutant | -10/Materials Mutant | -10/Mines Mutant | -9/Materials Mutant | -9/Mines Mutant | -9/Exiles Mutant | -8/Mines Mutant | -8/Materials Mutant | -8/Garrison Mutant | -8/Materials Mutant | -8/Storage Mutant | -8/Recycling Mutant | -8/Scraptown Hacker-Mutant | -6/Factory Mutant | -5/Factory Mutant | -5/Upper Caves Mutant | -5/Upper Caves Mutant | -5/Zhirov Mutant | -4/Proximity Caves Hacker-Mutant | -4/Factory Hacker-Ninja | -4/Upper Caves Hacker-Ninja | -4/Upper Caves Trapper-Ninja | -4/Warlord Resources | -11 -10 -10 -9 -9 -9 -8 -8 -8 -8 -8 -8 -8 -6 -5 -5 -5 -5 -4 -4 -4 -4 -4 ----------- Run | Yrd Mat Min Mat Min Exi Min Mat Gar Mat Sto Rec Scr Fac Fac Upp Upp Zhi Pro Fac Upp Upp War Matter Collected 4739 | 312 455 100 535 28 . 60 36 286 117 397 30 24 126 149 375 298 110 227 452 219 226 177 Remotely . | . . . . . . . . . . . . . . . . . . . . . . . Salvage Created 5694 | 117 625 25 772 36 . 121 145 408 57 1487 50 . 82 152 235 87 102 150 719 134 190 . Parts 311 | 8 46 2 58 9 . 12 6 25 6 54 4 . . 9 5 6 . 13 38 6 4 . Haulers Intercepted 6 | . 1 . . . . . . . . 2 . . . . . . . . 3 . . . Recyclers Shooed 1 | . 1 . . . . . . . . . . . . . . . . . . . . . Parts Field Recycled . | . . . . . . . . . . . . . . . . . . . . . . . Retrieved Matter . | . . . . . . . . . . . . . . . . . . . . . . . Parts Self-Destructed 35 | . . . . . . . . . . . . . . . 1 15 . 9 . 7 3 . Prevented 3 | . . . . . . . . . . . . . . . 1 . . . . . 2 . Kills | -11 -10 -10 -9 -9 -9 -8 -8 -8 -8 -8 -8 -8 -6 -5 -5 -5 -5 -4 -4 -4 -4 -4 ------- Run | Yrd Mat Min Mat Min Exi Min Mat Gar Mat Sto Rec Scr Fac Fac Upp Upp Zhi Pro Fac Upp Upp War Combat Hostiles Destroyed 143 | . 12 10 19 7 . 3 7 19 1 25 1 . 2 . 9 6 . 7 8 4 3 . Melee 9 | . . . 1 . . . . . . 3 . . . . 1 . . . 4 . . . Guns 31 | . 10 . 12 . . . . 1 1 6 1 . . . . . . . . . . . Cannons 14 | . . . . . . . . . . . . . 2 . 1 1 . 1 2 4 3 . AOE 83 | . 2 10 4 7 . 3 7 18 . 12 . . . . 7 5 . 6 2 . . . Classes Destroyed 20 | 2 6 1 2 . . 1 1 3 . 1 . . . . . 1 . . 1 1 . . Worker 13 | . 2 1 4 . . 1 1 . . 2 . . . . . . . . 2 . . . Builder 5 | . 1 . . . . . . . . 1 . . . . . . . . 3 . . . Tunneler 6 | 3 . . 1 . . 1 . . . . . . . 1 . . . . . . . . Hauler 6 | . 1 . . . . . . . . 2 . . . . . . . . 3 . . . Recycler 5 | 1 1 . . . . . . . . 1 . . . 1 . . . . 1 . . . Minesweeper 2 | . . . . . . . . . . . . . . . . . . . . 1 1 . Mechanic 3 | . . . . . . . 1 . . 2 . . . . . . . . . . . . Operator 4 | . . . 2 . . . . . . . . . 1 1 . . . . . . . . Drone 1 | . . . . . . . . . . . . . . . . . . . 1 . . . Watcher 3 | . 2 . 1 . . . . . . . . . . . . . . . . . . . Swarmer 53 | . 3 . 4 7 . 3 4 5 . 4 . . . . 5 4 . 4 6 4 . . Grunt 46 | . 9 . 12 . . 1 2 7 . 9 . . . . 3 . . . . . 3 . Brawler 2 | . . . . . . . . 1 . 1 . . . . . . . . . . . . Duelist 2 | . . . . . . . . 1 . 1 . . . . . . . . . . . . Sentry 18 | . . . 4 . . . 1 2 1 6 1 . 1 . 1 . . . 1 . . . Demolisher 4 | . . . . . . . . . . 4 . . . . . . . . . . . . Hunter 3 | . . . . . . 1 . . . . . . . . . . . 2 . . . . Programmer 8 | . . . . . . . . 3 . . . . 1 . . 2 . 1 1 . . . Behemoth 1 | . . . . . . . . . . . . . . . . 1 . . . . . . Packrat 1 | . . . . . . . . . . . . . . . . . . . . 1 . . Assembled 10 | . . 10 . . . . . . . . . . . . . . . . . . . . Best Kill Streak 14 | 4 3 7 9 4 . 3 9 5 1 14 1 . 1 1 9 4 . 4 3 2 2 . Combat Bots Only 11 | . 3 7 5 4 . 3 6 5 1 11 1 . 1 . 9 4 . 4 2 2 1 . Max Kills in Single Turn 5 | 1 2 2 4 3 . 4 4 4 1 5 1 . 1 1 3 2 . 3 3 1 1 . Gunslinging 1 | . 1 . . . . . . . . . . . . . . . . . . . . . Exploded 4 | . 2 2 2 3 . 2 3 4 . 3 . . . . 3 2 . 3 2 . . . Melee 1 | . . . 1 . . . . . . 1 . . . . 1 . . . 1 . . . Uniques/NPCs Destroyed . | . . . . . . . . . . . . . . . . . . . . . . . Combat | -11 -10 -10 -9 -9 -9 -8 -8 -8 -8 -8 -8 -8 -6 -5 -5 -5 -5 -4 -4 -4 -4 -4 -------- Run | Yrd Mat Min Mat Min Exi Min Mat Gar Mat Sto Rec Scr Fac Fac Upp Upp Zhi Pro Fac Upp Upp War Hostile Shots Fired 652 | . 29 5 61 7 . 2 20 32 6 90 4 . 98 12 23 41 . 7 52 32 30 101 Missed 219 | . 8 3 14 4 . 1 5 8 . 15 2 . 43 3 6 17 . 3 21 13 16 37 Damage Taken 8472 | . 350 52 509 22 . 61 203 416 85 1856 29 . 485 107 318 440 . 111 845 272 334 1977 Core 1912 | . 22 20 88 . . 10 42 32 . 183 . . 57 29 99 108 . 37 164 96 123 802 Absorbed by Shields . | . . . . . . . . . . . . . . . . . . . . . . . Reduced by Siege Mode 107 | . . . . . . . . . . 107 . . . . . . . . . . . . Regen/Repaired (Parts) 246 | . 39 . . . . . . . . 98 . . . 26 . . . . 63 . . 20 Core Remaining (%) 79 | 100 . 83 . . . 75 . . . . . 53 93 . . . . 72 . . . . Volleys Fired 403 | 14 46 9 44 3 . 2 10 27 8 82 2 . 26 11 4 22 5 7 21 27 31 2 Largest 2 | 2 2 1 2 1 . 1 1 2 1 2 1 . 1 1 1 1 1 1 1 1 1 1 Hottest 117 | 40 50 30 40 30 . 30 30 111 81 117 81 . 61 80 80 80 57 80 80 65 65 100 Shots Fired 505 | 28 93 9 79 3 . 2 10 31 8 84 2 . 26 11 4 22 5 7 21 27 31 2 Gun 276 | 28 91 . 77 . . . . 5 8 65 2 . . . . . . . . . . . Cannon 137 | . . . . . . . . . . . . . 26 10 1 14 5 1 20 27 31 2 Launcher 92 | . 2 9 2 3 . 2 10 26 . 19 . . . 1 3 8 . 6 1 . . . Special . | . . . . . . . . . . . . . . . . . . . . . . . Kinetic 331 | 28 91 . 77 . . . . . . . . . 26 10 1 14 5 1 20 27 31 . Thermal 80 | . . . . . . . . 5 8 65 2 . . . . . . . . . . . Explosive 73 | . 2 9 2 3 . 2 10 26 . . . . . 1 3 8 . 6 1 . . . Electromagnetic 19 | . . . . . . . . . . 19 . . . . . . . . . . . . Entropic 2 | . . . . . . . . . . . . . . . . . . . . . . 2 Robot Hit Streak 22 | 4 14 3 11 4 . 5 1 7 6 17 4 . 5 1 2 16 21 22 2 2 5 2 Robot Miss Streak 7 | 5 7 2 2 . . . 1 1 3 4 . . 4 4 . . . . 3 6 3 . Penetration Max 1 | . . . . . . . . . . . . . . . . . 1 . . . . . Secondary Targets 3 | . 1 . 2 . . . . . . . . . . . . . . . . . . . Max Gunslinging Chain 1 | . 1 . 1 . . . . . . . . . . . . . . . . . . . Shots Hit Robots 348 | 15 48 4 60 3 . 3 2 14 6 60 2 . 17 7 2 22 5 7 26 11 20 14 Core Hits 309 | 4 30 23 37 6 . 7 18 42 1 50 1 . 5 3 12 18 2 15 23 3 6 3 Critical Kills 2 | . . . . . . . . . . . . . 1 . . . . . 1 . . . Critical Parts Destroyed 6 | . . . 3 . . . . . . . . . 3 . . . . . . . . . Critical Strikes 27 | . . . 3 . . . . . . 3 . . 4 . . . . . 8 . 4 5 Burn 3 | . . . . . . . . . . 3 . . . . . . . . . . . . Destroy 6 | . . . 1 . . . . . . . . . 4 . . . . . 1 . . . Blast 7 | . . . . . . . . . . . . . . . . . . . 3 . 4 . Smash 2 | . . . 2 . . . . . . . . . . . . . . . . . . . Impale 9 | . . . . . . . . . . . . . . . . . . . 4 . . 5 Melee Attacks 174 | . . . 15 1 . 2 1 20 . 11 1 . 21 10 . 8 . 7 31 14 14 18 Impact 39 | . . . 15 1 . 2 1 20 . . . . . . . . . . . . . . Slashing 43 | . . . . . . . . . . 11 1 . 21 10 . . . . . . . . Piercing 92 | . . . . . . . . . . . . . . . . 8 . 7 31 14 14 18 Sneak Attacks 30 | . . . 1 . . 2 1 . . 1 . . 2 2 . 3 . 1 7 2 . 8 Combat Hostiles 4 | . . . . . . . . . . . . . . . . 3 . 1 . . . . Follow-up Attacks . | . . . . . . . . . . . . . . . . . . . . . . . Damage Inflicted 17610 | 199 791 577 1564 375 . 566 704 1407 145 3391 48 . 392 573 840 980 228 736 1720 561 836 977 Guns 2752 | 199 671 . 656 . . . . 98 145 935 48 . . . . . . . . . . . Cannons 2348 | . . . . . . . . . . . . . 158 78 34 461 228 36 256 266 759 72 Explosions 8519 | . 120 577 506 375 . 323 577 1272 . 2236 . . . 256 748 497 . 688 344 . . . Melee 3930 | . . . 402 . . 243 127 37 . 217 . . 234 239 . 22 . 12 1120 295 77 905 Ramming 61 | . . . . . . . . . . 3 . . . . 58 . . . . . . . Kinetic 3802 | 199 671 . 656 . . . . . . . . . 158 78 34 461 228 36 256 266 759 . Thermal 2044 | . . . 358 . . . . 98 145 1232 48 . . 163 . . . . . . . . Explosive 5717 | . 120 577 148 375 . 323 577 1272 . . . . . 48 748 497 . 688 344 . . . Electromagnetic 1984 | . . . . . . . . . . 1939 . . . 45 . . . . . . . . Impact 809 | . . . 402 . . 243 127 37 . . . . . . . . . . . . . . Slashing 690 | . . . . . . . . . . 217 . . 234 239 . . . . . . . . Piercing 2431 | . . . . . . . . . . . . . . . . 22 . 12 1120 295 77 905 Entropic 72 | . . . . . . . . . . . . . . . . . . . . . . 72 Highest Corruption 4 | . 2 2 . . . . . 1 1 3 3 . . . . 1 . . . . . 4 Average Corruption 1 | . 1 2 . . . . . 1 1 2 3 . . . . 1 . . . . . 2 Corruption Purged 1 | . . . . . . . . . . . . . . . . 1 . . . . . . Corruption Blocked . | . . . . . . . . . . . . . . . . . . . . . . . Effects 50 | . 8 2 . . . . . 6 1 16 16 . . . . 1 . . . . . . Message Errors 14 | . 1 . . . . . . 3 1 4 5 . . . . . . . . . . . Matter Fused 11 | . 3 . . . . . . . . 4 4 . . . . . . . . . . . Heat Flow Errors 6 | . 1 . . . . . . . . 2 3 . . . . . . . . . . . Energy Discharges 8 | . . 1 . . . . . 2 . 4 1 . . . . . . . . . . . Parts Rejected 1 | . . . . . . . . . . 1 . . . . . . . . . . . . Data Loss (minor) 6 | . 2 1 . . . . . 1 . . 2 . . . . . . . . . . . Data Loss (major) 1 | . . . . . . . . . . . 1 . . . . . . . . . . . Misfires 2 | . 1 . . . . . . . . 1 . . . . . . . . . . . . Alerts 1 | . . . . . . . . . . . . . . . . 1 . . . . . . Overload Shots . | . . . . . . . . . . . . . . . . . . . . . . . Overflow Damage 1362 | . . 6 242 41 . 110 89 4 . 65 . . 44 149 62 . 91 89 114 202 54 . Projectiles 174 | . . . . . . . . . . . . . . 27 . . 91 . . 28 28 . Explosions 420 | . . 6 111 41 . 13 2 4 . 54 . . . 55 29 . . 89 16 . . . Melee 768 | . . . 131 . . 97 87 . . 11 . . 44 67 33 . . . 98 174 26 . Knockbacks 12 | . . . . . . . 1 . . . . . 1 . . . . . 3 . 7 . Impact 1 | . . . . . . . 1 . . . . . . . . . . . . . . . Kinetic 11 | . . . . . . . . . . . . . 1 . . . . . 3 . 7 . Secondary . | . . . . . . . . . . . . . . . . . . . . . . . Self-Inflicted Damage 505 | . . 33 . . . 54 . 41 . 296 . . . . 43 . . 38 . . . . Shots 22 | . . 2 . . . 2 . 2 . 14 . . . . 1 . . 1 . . . . Rammed 2 | . . . . . . . . . . 1 . . . . 1 . . . . . . . Targets Rammed 2 | . . . . . . . . . . 1 . . . . 1 . . . . . . . Kicked . | . . . . . . . . . . . . . . . . . . . . . . . Crushed . | . . . . . . . . . . . . . . . . . . . . . . . Highest Temperature 394 | . 188 18 . . . . 2 261 255 369 237 . 169 394 154 93 . 132 136 18 90 4 Average Temperature 94 | . 71 15 . . . . 2 85 97 112 97 . 54 124 91 38 . 60 44 11 40 4 Received Heat Transfer 1319 | . 117 20 231 . . . 72 117 45 396 . . 126 . 18 63 . . 36 9 51 18 Effects 9 | . . . . . . . . . . 3 . . . 6 . . . . . . . . Shutdowns 2 | . . . . . . . . . . 1 . . . 1 . . . . . . . . Energy Bleed 4 | . . . . . . . . . . 1 . . . 3 . . . . . . . . Interference 2 | . . . . . . . . . . 1 . . . 1 . . . . . . . . Short Circuit 1 | . . . . . . . . . . . . . . 1 . . . . . . . . Siege Activations 9 | . . . . . . . . 4 1 4 . . . . . . . . . . . . Total Turns 145 | . . . . . . . . 35 10 100 . . . . . . . . . . . . Longest Duration 49 | . . . . . . . . 16 10 49 . . . . . . . . . . . . Robots Corrupted 8 | . . . 3 . . . 1 . . 4 . . . . . . . . . . . . Combat Hostiles 6 | . . . 2 . . . . . . 4 . . . . . . . . . . . . Parts Fried 17 | . . . 2 . . 2 2 . . 10 . . . . . . . . . . 1 . Impact Corruptions 13 | . . . 7 . . 1 3 . . . . . . . 1 . 1 . . . . . Robots Melted . | . . . . . . . . . . . . . . . . . . . . . . . Combat Hostiles . | . . . . . . . . . . . . . . . . . . . . . . . Parts Melted 6 | . . . . . . . . . . 6 . . . . . . . . . . . . Heat Transferred 2909 | . . . 250 . . . . 148 222 2115 74 . . 100 . . . . . . . . Parts Sabotaged . | . . . . . . . . . . . . . . . . . . . . . . . Parts Stolen . | . . . . . . . . . . . . . . . . . . . . . . . Parts Stripped . | . . . . . . . . . . . . . . . . . . . . . . . Power Chain Reactions 4 | . . . . . . . . . . 4 . . . . . . . . . . . . Alert | -11 -10 -10 -9 -9 -9 -8 -8 -8 -8 -8 -8 -8 -6 -5 -5 -5 -5 -4 -4 -4 -4 -4 ------- Run | Yrd Mat Min Mat Min Exi Min Mat Gar Mat Sto Rec Scr Fac Fac Upp Upp Zhi Pro Fac Upp Upp War Peak Influence 1161 | 20 181 57 572 414 . 132 284 980 627 1161 319 . 287 621 . . . . 720 . . . Initial 477 | . 13 25 22 216 . . 51 184 477 264 319 . . 76 . . . . 107 . . . Average 337 | 7 57 47 360 387 . 126 190 548 556 860 82 . 96 267 . . . . 345 . . . Maximum Alert Level 4 | . . . 2 2 . . 1 3 2 4 1 . 1 2 . . . . 3 . . . Low Security (%) 49 | 100 100 100 38 . . 100 40 7 . . 78 . 80 47 . . . . 42 . . . Level 1 10 | . . . 5 24 . . 59 4 . 7 21 . 19 15 . . . . 28 . . . Level 2 24 | . . . 55 75 . . . 71 100 9 . . . 36 . . . . 22 . . . Level 3 13 | . . . . . . . . 17 . 71 . . . . . . . . 6 . . . Level 4 1 | . . . . . . . . . . 11 . . . . . . . . . . . . Level 5 . | . . . . . . . . . . . . . . . . . . . . . . . High Security . | . . . . . . . . . . . . . . . . . . . . . . . Max Security . | . . . . . . . . . . . . . . . . . . . . . . . Squads Dispatched 26 | . 3 . 4 . . . . . . 5 . . 7 4 . . . . 3 . . . Investigation 11 | . 2 . 3 . . . . . . 1 . . 1 2 . . . . 2 . . . Extermination 2 | . . . . . . . . . . . . . 2 . . . . . . . . . Reinforcement 5 | . 1 . 1 . . . . . . 1 . . . 2 . . . . . . . . Assault 6 | . . . . . . . . . . 3 . . 2 . . . . . 1 . . . Garrison 2 | . . . . . . . . . . . . . 2 . . . . . . . . . Intercept . | . . . . . . . . . . . . . . . . . . . . . . . Searches Triggered . | . . . . . . . . . . . . . . . . . . . . . . . Construction Impeded 1 | . . . . . . . . . . 1 . . . . . . . . . . . . Haulers Reinforced 1 | . . . . . . . . . . . . . . 1 . . . . . . . . Active Scanning Responses . | . . . . . . . . . . . . . . . . . . . . . . . Cargo Convoy Interrupts . | . . . . . . . . . . . . . . . . . . . . . . . Stealth | -11 -10 -10 -9 -9 -9 -8 -8 -8 -8 -8 -8 -8 -6 -5 -5 -5 -5 -4 -4 -4 -4 -4 --------- Run | Yrd Mat Min Mat Min Exi Min Mat Gar Mat Sto Rec Scr Fac Fac Upp Upp Zhi Pro Fac Upp Upp War Distress Signals 15 | . 2 . 5 . . . . . . 2 . . 3 2 . . . . 1 . . . Communications Jammed 5 | . . . . . . . . . . . . . . 1 . . . . 3 . 1 . Distress Signals 5 | . . . . . . . . . . . . . . 1 . . . . 3 . 1 . Times Spotted 252 | . 21 13 28 7 . 1 8 21 4 52 1 . 11 12 9 15 . 6 17 10 9 7 Peak Tracking Total 18 | . 3 18 5 4 . 1 7 5 2 14 1 . 5 5 5 7 . 3 6 9 3 9 Tactical Retreats 27 | . 2 2 2 . . . . . . 6 . . 2 3 1 1 . . 2 3 3 . Traps | -11 -10 -10 -9 -9 -9 -8 -8 -8 -8 -8 -8 -8 -6 -5 -5 -5 -5 -4 -4 -4 -4 -4 ------- Run | Yrd Mat Min Mat Min Exi Min Mat Gar Mat Sto Rec Scr Fac Fac Upp Upp Zhi Pro Fac Upp Upp War Traps Triggered 7 | . 4 . 1 . . . . . . . . . 1 . . . . . 1 . . . Indirectly . | . . . . . . . . . . . . . . . . . . . . . . . Trap Hack Attempts . | . . . . . . . . . . . . . . . . . . . . . . . Triggered . | . . . . . . . . . . . . . . . . . . . . . . . Disarmed . | . . . . . . . . . . . . . . . . . . . . . . . Reprogrammed . | . . . . . . . . . . . . . . . . . . . . . . . Reused 7 | . . . . . . . . 1 . . . . 1 . . . . . 1 . 2 2 Traps Reconfigurated 14 | . . . . . . . . 7 . 7 . . . . . . . . . . . . Traps Extracted 6 | . . . . . . . . . . . . . . . . . . . . . . 6 Installed 9 | . . . . . . . . . . . . . 2 . . . . . 1 . 2 4 Triggered 11 | . . . . . . . . 1 . . . . 1 1 . . . . 1 . 3 4 Most Traps Carried 14 | . . . . . . . . . . . . 3 3 1 1 1 1 1 1 4 8 14 Machines | -11 -10 -10 -9 -9 -9 -8 -8 -8 -8 -8 -8 -8 -6 -5 -5 -5 -5 -4 -4 -4 -4 -4 ---------- Run | Yrd Mat Min Mat Min Exi Min Mat Gar Mat Sto Rec Scr Fac Fac Upp Upp Zhi Pro Fac Upp Upp War Machines Disabled 48 | . 1 . 3 . . 2 1 8 . 8 . . 2 13 . 1 . . 8 . . 1 Max in Single Turn 7 | . 1 . 3 . . 2 1 2 . 2 . . 1 7 . 1 . . 1 . . 1 Garrison Access 5 | . . . . . . . . . . 1 . . 2 1 . . . . 1 . . . Garrison Relay 1 | . . . . . . . . 1 . . . . . . . . . . . . . . Machines Repaired . | . . . . . . . . . . . . . . . . . . . . . . . Machines Dismantled 1 | . . . . . . . . 1 . . . . . . . . . . . . . . Machines Sabotaged . | . . . . . . . . . . . . . . . . . . . . . . . Overloaded Fab Kills . | . . . . . . . . . . . . . . . . . . . . . . . Hacking | -11 -10 -10 -9 -9 -9 -8 -8 -8 -8 -8 -8 -8 -6 -5 -5 -5 -5 -4 -4 -4 -4 -4 --------- Run | Yrd Mat Min Mat Min Exi Min Mat Gar Mat Sto Rec Scr Fac Fac Upp Upp Zhi Pro Fac Upp Upp War Machines Accessed 92 | . 10 . 9 . 1 . 3 2 2 13 11 2 6 15 1 1 4 . 7 1 . 4 Terminals 49 | . 7 . 7 . . . 2 2 1 9 6 . 3 9 1 . . . 2 . . . Fabricators 5 | . . . . . . . . . . . . . 1 2 . . . . 2 . . . Repair Stations 6 | . 1 . 1 . . . . . . 2 . . . 1 . . . . 1 . . . Recycling Units 13 | . 2 . 1 . . . . . 1 1 5 . . 2 . . . . 1 . . . Scanalyzers . | . . . . . . . . . . . . . . . . . . . . . . . Garrison Access 6 | . . . . . . . 1 . . 1 . . 2 1 . . . . 1 . . . Total Hacks 257 | . 31 . 27 . 1 . 4 3 4 39 29 5 17 43 3 1 17 . 16 1 . 16 Successful 164 | . 15 . 15 . 1 . 2 1 2 27 20 5 8 22 3 1 17 . 8 1 . 16 Failed 91 | . 15 . 11 . . . 2 2 2 12 9 . 9 21 . . . . 8 . . . Catastrophic 10 | . 1 . 2 . . . 1 . . 1 3 . . 1 . . . . 1 . . . Database Lockouts 2 | . 1 . 1 . . . . . . . . . . . . . . . . . . . Manual 132 | . 17 . 23 . 1 . 2 . 1 23 20 . 10 28 . . . . 7 . . . Terminals 151 | . 24 . 24 . . . 3 3 2 32 19 . 10 28 3 . . . 3 . . . Fabricators 20 | . . . . . . . . . . . . . 4 8 . . . . 8 . . . Repair Stations 11 | . 2 . 1 . . . . . . 4 . . . 2 . . . . 2 . . . Recycling Units 26 | . 5 . 2 . . . . . 2 2 10 . . 4 . . . . 1 . . . Scanalyzers . | . . . . . . . . . . . . . . . . . . . . . . . Garrison Access 8 | . . . . . . . 1 . . 1 . . 3 1 . . . . 2 . . . Terminal Hacks 79 | . 6 . 5 . 1 . . 1 1 12 5 5 1 4 3 1 17 . . 1 . 16 Record 14 | . . . . . . . . . . . 1 4 . 1 3 . 5 . . . . . Part Schematic 7 | . 1 . 2 . . . . . . . . . . . . . 4 . . . . . Robot Analysis 4 | . . . . . . . . . . . . . . . . . 4 . . . . . Prototype ID Bank 19 | . . . . . . . . . . . . . . . . . 4 . . . . 15 Open Door 5 | . . . . . . . . . . 2 . . . . . 1 . . . 1 . 1 Branch Access Points 3 | . . . 1 . . . . . . 1 . . . 1 . . . . . . . . Terminal Index 6 | . 1 . 1 . . . . . . 1 1 . 1 1 . . . . . . . . Alert Level 3 | . 1 . . . . . . . . 2 . . . . . . . . . . . . Unreport Threat 7 | . 2 . . . . . . . . 2 3 . . . . . . . . . . . Locate Traps 5 | . . . . . . . . . 1 3 . . . 1 . . . . . . . . Dispatch Records 1 | . 1 . . . . . . . . . . . . . . . . . . . . . Hauler Manifests 1 | . . . 1 . . . . . . . . . . . . . . . . . . . Zone Layout 1 | . . . . . . . . . . 1 . . . . . . . . . . . . Garrison Registry 1 | . . . . . . . . 1 . . . . . . . . . . . . . . Derelict Proto ID Bank 2 | . . . . . 1 . . . . . . 1 . . . . . . . . . . Fabricator Hacks 8 | . . . . . . . . . . . . . 2 2 . . . . 4 . . . Network Status 3 | . . . . . . . . . . . . . 1 1 . . . . 1 . . . Load Schematic 3 | . . . . . . . . . . . . . 1 1 . . . . 1 . . . Build 2 | . . . . . . . . . . . . . . . . . . . 2 . . . Repair Station Hacks 10 | . 2 . . . . . . . . 4 . . . 2 . . . . 2 . . . Scan Component 5 | . 1 . . . . . . . . 2 . . . 1 . . . . 1 . . . Repair 5 | . 1 . . . . . . . . 2 . . . 1 . . . . 1 . . . Recycling Unit Hacks 6 | . . . . . . . . . . 1 5 . . . . . . . . . . . Retrieve Components 6 | . . . . . . . . . . 1 5 . . . . . . . . . . . Scanalyzer . | . . . . . . . . . . . . . . . . . . . . . . . Garrison Access Hacks 3 | . . . . . . . 1 . . 1 . . . 1 . . . . . . . . Unlock Access 1 | . . . . . . . 1 . . . . . . . . . . . . . . . Seal Access 2 | . . . . . . . . . . 1 . . . 1 . . . . . . . . Unauthorized Hacks 58 | . 7 . 10 . . . 1 . 1 9 10 . 5 13 . . . . 2 . . . Terminals 46 | . 7 . 10 . . . 1 . 1 8 5 . 4 10 . . . . . . . . Track 2 | . . . 2 . . . . . . . . . . . . . . . . . . . Botnet 9 | . 2 . 2 . . . . . . 2 . . 1 2 . . . . . . . . Operators 2 | . . . 1 . . . . . . . . . . 1 . . . . . . . . Skim 33 | . 5 . 5 . . . 1 . 1 6 5 . 3 7 . . . . . . . . Fabricators 5 | . . . . . . . . . . . . . 1 3 . . . . 1 . . . Report 1 | . . . . . . . . . . . . . . 1 . . . . . . . . Prioritize 1 | . . . . . . . . . . . . . . . . . . . 1 . . . Liberate 1 | . . . . . . . . . . . . . . 1 . . . . . . . . Recompile 2 | . . . . . . . . . . . . . 1 1 . . . . . . . . Repair Stations 1 | . . . . . . . . . . . . . . . . . . . 1 . . . Recycling Units 6 | . . . . . . . . . . 1 5 . . . . . . . . . . . Recyclers 1 | . . . . . . . . . . 1 . . . . . . . . . . . . Tunnel 5 | . . . . . . . . . . . 5 . . . . . . . . . . . Scrapoids 1 | . . . . . . . . . . . . . . . . . . . 1 . . . Scanalyzers . | . . . . . . . . . . . . . . . . . . . . . . . Garrison Access . | . . . . . . . . . . . . . . . . . . . . . . . Data Cores Recovered 1 | . . . 1 . . . . . . . . . . . . . . . . . . . Used . | . . . . . . . . . . . . . . . . . . . . . . . Hacking Detections 66 | . 10 . 8 . . . 3 2 2 10 7 . 6 12 1 . . . 5 . . . Full Trace Events 4 | . . . 1 . . . . . . 1 . . . 1 . . . . 1 . . . Feedback Events 1 | . . . . . . . . . . 1 . . . . . . . . . . . . Hackware Fried 1 | . . . . . . . . . . 1 . . . . . . . . . . . . Feedback Blocked . | . . . . . . . . . . . . . . . . . . . . . . . Robot Schematics Acquired . | . . . . . . . . . . . . . . . . . . . . . . . Robots Built . | . . . . . . . . . . . . . . . . . . . . . . . Authchips . | . . . . . . . . . . . . . . . . . . . . . . . Time . | . . . . . . . . . . . . . . . . . . . . . . . Total Robot Build Rating . | . . . . . . . . . . . . . . . . . . . . . . . Part Schematics Acquired 7 | . 1 . 2 . . . . . . . . . . . . . 4 . . . . . Parts Built 1 | . . . . . . . . . . . . . . . . . . . 1 . . . Authchips 1 | . . . . . . . . . . . . . . . . . . . 1 . . . Time 326 | . . . . . . . . . . . . . . . . . . . 326 . . . Total Part Build Rating 7 | . . . . . . . . . . . . . . . . . . . 7 . . . Parts Repaired 5 | . 1 . . . . . . . . 2 . . . 1 . . . . 1 . . . Time 259 | . 26 . . . . . . . . 94 . . . 108 . . . . 31 . . . Parts Recycled . | . . . . . . . . . . . . . . . . . . . . . . . Recycled Matter . | . . . . . . . . . . . . . . . . . . . . . . . Retrieved Matter . | . . . . . . . . . . . . . . . . . . . . . . . Retrieved Components 22 | . . . . . . . . . . 10 12 . . . . . . . . . . . Parts Scanalyzed . | . . . . . . . . . . . . . . . . . . . . . . . Part Schematics Acquired . | . . . . . . . . . . . . . . . . . . . . . . . Parts Damaged . | . . . . . . . . . . . . . . . . . . . . . . . Bothacking | -11 -10 -10 -9 -9 -9 -8 -8 -8 -8 -8 -8 -8 -6 -5 -5 -5 -5 -4 -4 -4 -4 -4 ------------ Run | Yrd Mat Min Mat Min Exi Min Mat Gar Mat Sto Rec Scr Fac Fac Upp Upp Zhi Pro Fac Upp Upp War Used RIF Installer . | . . . . . . . . . . . . . . . . . . . . . . . Robots Hacked . | . . . . . . . . . . . . . . . . . . . . . . . Non-combat . | . . . . . . . . . . . . . . . . . . . . . . . Combat . | . . . . . . . . . . . . . . . . . . . . . . . Robot Hacks Applied . | . . . . . . . . . . . . . . . . . . . . . . . Relay Couplers Released 10 | . . . . . . . . 5 . . . . 1 . . . . . 4 . . . Machine Destruction 6 | . . . . . . . . 5 . . . . 1 . . . . . . . . . Programmers 4 | . . . . . . . . . . . . . . . . . . . 4 . . . Fabnet Peak Effective % . | . . . . . . . . . . . . . . . . . . . . . . . Robots Rewired 11 | . . . . . 3 . . 3 . . . . . . . . . . . . . 5 Allies Hacked . | . . . . . . . . . . . . . . . . . . . . . . . Hacks Repelled . | . . . . . . . . . . . . . . . . . . . . . . . Allies | -11 -10 -10 -9 -9 -9 -8 -8 -8 -8 -8 -8 -8 -6 -5 -5 -5 -5 -4 -4 -4 -4 -4 -------- Run | Yrd Mat Min Mat Min Exi Min Mat Gar Mat Sto Rec Scr Fac Fac Upp Upp Zhi Pro Fac Upp Upp War Total Allies 33 | . . 3 . . 3 . . 3 . 10 . . . 3 . 1 . . 5 . . 5 Largest Group 12 | . . 3 3 . 3 1 1 3 3 12 . . . 3 . 1 . . 5 . . 5 Highest-Rated Group 274 | . . 40 40 . 50 21 21 101 101 238 . . . 90 . 85 . . 238 . . 274 Highest-Rated Ally 85 | . . 16 16 . 21 21 21 39 39 34 . . . 30 . 85 . . 50 . . 56 Total Orders 9 | . . . 4 . . . . 2 . . . . . . . . . . 3 . . . STAY 3 | . . . 2 . . . . 1 . . . . . . . . . . . . . . FOLLOW 3 | . . . 2 . . . . 1 . . . . . . . . . . . . . . EXPLORE 3 | . . . . . . . . . . . . . . . . . . . 3 . . . Ally Attacks 185 | . . 2 31 . . 1 2 15 11 62 . . . 10 . . . . 34 . . 17 Total Damage 4066 | . . 18 344 . . 12 64 256 126 863 . . . 195 . . . . 1157 . . 1031 Kills 31 | . . . 7 . . . . 3 2 11 . . . 2 . . . . 6 . . . Allies Corrupted 2 | . . . . . . . . . . . . . . . . . . . . . . 2 Allies Melted . | . . . . . . . . . . . . . . . . . . . . . . . Intel | -11 -10 -10 -9 -9 -9 -8 -8 -8 -8 -8 -8 -8 -6 -5 -5 -5 -5 -4 -4 -4 -4 -4 ------- Run | Yrd Mat Min Mat Min Exi Min Mat Gar Mat Sto Rec Scr Fac Fac Upp Upp Zhi Pro Fac Upp Upp War Robot Analysis Total 4 | . . . . . . . . . . . . . . . . . 4 . . . . . Derelict Logs Recovered 7 | . . 1 . . . . . . . . . . . . 2 1 . 1 . . 2 . Drone Launches 3 | . . . . . . . . . . . . . . . . . . . 3 . . . Drone Recoveries . | . . . . . . . . . . . . . . . . . . . . . . . Exploration | -11 -10 -10 -9 -9 -9 -8 -8 -8 -8 -8 -8 -8 -6 -5 -5 -5 -5 -4 -4 -4 -4 -4 ------------- Run | Yrd Mat Min Mat Min Exi Min Mat Gar Mat Sto Rec Scr Fac Fac Upp Upp Zhi Pro Fac Upp Upp War Turns Passed 12963 | 142 1407 182 1167 126 589 217 91 1053 154 1261 896 1262 594 473 290 370 120 177 731 507 661 493 Spaces Moved 9963 | 58 594 98 457 70 355 131 43 520 77 505 522 737 776 647 479 498 161 266 914 655 773 627 Core 23 | 4 . . . . . . . . . . . . . . . . . . . . . 19 Treads 4163 | 54 594 98 457 70 355 131 43 520 77 505 522 737 . . . . . . . . . . Legs . | . . . . . . . . . . . . . . . . . . . . . . . Wheels . | . . . . . . . . . . . . . . . . . . . . . . . Hover 5777 | . . . . . . . . . . . . . 776 647 479 498 161 266 914 655 773 608 Flight . | . . . . . . . . . . . . . . . . . . . . . . . Fastest Speed 46 | 50 160 160 160 160 160 160 160 160 160 160 170 170 50 46 50 50 62 55 48 50 50 46 Average Speed 98 | 154 160 160 160 160 160 160 160 160 160 165 170 170 51 48 50 59 62 55 51 50 51 53 Slowest Speed 170 | 160 160 160 160 160 160 160 160 160 160 170 170 170 58 50 50 62 62 62 55 50 58 150 Overloaded Moves . | . . . . . . . . . . . . . . . . . . . . . . . Propulsion Burnouts . | . . . . . . . . . . . . . . . . . . . . . . . Robots Hopped . | . . . . . . . . . . . . . . . . . . . . . . . Cave-ins Triggered . | . . . . . . . . . . . . . . . . . . . . . . . Exploration Rate (%) 52 | 4 98 33 59 16 88 43 11 67 14 86 95 52 22 26 66 68 61 48 32 58 82 87 Regions Visited 22 Branch Regions 14 Pre-discovered Areas 15 | . . . 2 . . . . . . . 6 . . 1 1 . 3 . . . 2 . Known Exits Taken 13 | . 1 1 1 . . 1 1 . . 1 1 . . 1 1 . . 1 1 1 1 . Unknown Exits Taken 8 | 1 . . . 1 1 . . . 1 . . 1 1 . . 1 1 . . . . . Scrap Searched 13 | . . . . . . . . . . . . 1 . . 1 4 . 3 . 1 3 . Spaces Dug 69 | . . . 5 . . . . 9 . 1 1 . 13 5 . . . . 8 15 12 . Terrain Destroyed 656 | . 5 64 33 32 . 14 27 120 1 31 1 . 13 105 17 76 . 44 23 30 19 1 Melee 59 | . . . 5 . . . . 9 . . 1 . 13 4 . . . . 8 10 9 . Projectile 53 | . . . . . . . . . 1 10 . . . 4 . . . . 7 20 10 1 AOE 544 | . 5 64 28 32 . 14 27 111 . 21 . . . 97 17 76 . 44 8 . . . Terrain Rammed . | . . . . . . . . . . . . . . . . . . . . . . . Walls Destroyed . | . . . . . . . . . . . . . . . . . . . . . . . Machines Disabled . | . . . . . . . . . . . . . . . . . . . . . . . Actions | -11 -10 -10 -9 -9 -9 -8 -8 -8 -8 -8 -8 -8 -6 -5 -5 -5 -5 -4 -4 -4 -4 -4 --------- Run | Yrd Mat Min Mat Min Exi Min Mat Gar Mat Sto Rec Scr Fac Fac Upp Upp Zhi Pro Fac Upp Upp War Total 12314 | 79 956 114 790 78 377 135 54 680 103 841 528 747 915 778 523 553 175 288 1099 778 976 747 Wait 1308 | 1 299 6 229 1 . . . 53 13 198 . . 45 92 39 11 . . 75 76 148 22 Move 9939 | 57 593 97 456 69 354 130 42 517 76 504 521 736 775 646 478 497 160 265 913 654 772 627 Hop . | . . . . . . . . . . . . . . . . . . . . . . . Pick Up 63 | . 8 . 13 . 1 . . 10 1 5 2 7 2 2 . . 2 1 6 1 . 2 Fast Attach 80 | 7 1 . 1 . 1 . . 3 . 11 1 1 3 9 1 3 4 4 17 1 1 11 Attach 42 | . . . 3 . . 1 1 3 . 8 . . 9 . . 2 . 2 5 1 1 6 Detach 29 | . . . . . . . . 3 . 5 1 . 1 1 . 4 . . 5 1 2 6 Swap 62 | . 7 1 17 4 . . . 4 2 6 . . 4 1 . 1 . 1 7 2 4 1 Drop 109 | . 2 1 12 . 2 . . 12 3 8 . 3 14 6 . 4 4 1 18 1 1 17 Fire 403 | 14 46 9 44 3 . 2 10 27 8 82 2 . 26 11 4 22 5 7 21 27 31 2 Melee 174 | . . . 15 1 . 2 1 20 . 11 1 . 21 10 . 8 . 7 31 14 14 18 Ram 1 | . . . . . . . . . . . . . . . 1 . . . . . . . Kick . | . . . . . . . . . . . . . . . . . . . . . . . Crush 1 | . . . . . . . . . . 1 . . . . . . . . . . . . Escape Stasis 13 | . . . . . . . . . . . . . 13 . . . . . . . . . Rewire 72 | . . . . . 19 . . 20 . 2 . . . . . . . . . . . 31 Trap 9 | . . . . . . . . . . . . . 2 . . . . . 1 . 2 4 Miscellaneous 9 | . . . . . . . . 8 . . . . . . . 1 . . . . . . Route ------- -11/Scrapyard -10/Materials (discovered 5 exits: *Mat x3 / *Min / Sub) -10/Mines (discovered 3 exits: *Mat x2 / Sub) -9/Materials (discovered 4 exits: *Mat x3 / *Min) -9/Mines (discovered 3 exits: Mat x2 / *Exi) -9/Exiles -8/Mines (discovered 2 exits: *Mat x2) -8/Materials -8/Garrison (discovered 3 exits: *Mat x3) -8/Materials -8/Storage (discovered 2 exits: *Fac / *Rec) -8/Recycling (discovered 2 exits: *Fac / *Scr) -8/Scraptown -6/Factory (discovered 2 exits: *Fac / Ext) -5/Factory (discovered 2 exits: *Upp x2) -5/Upper Caves -5/Upper Caves (discovered 2 exits: *Fac / *Zhi) -5/Zhirov -4/Proximity Caves -4/Factory (discovered 3 exits: *Res x2 / *Upp) -4/Upper Caves -4/Upper Caves (discovered 2 exits: *Res / *War) -4/Warlord History --------- Turn | Location | Event 9 | -11/Scrapyard | Discovered new exit (range 16) 143 | -11/Scrapyard | Entered Materials 315 | -10/Materials | Build established: Mutant 341 | -10/Materials | Discovered new exit (range 8) 413 | -10/Materials | Repaired Lgt. Treads 647 | -10/Materials | Discovered new exit (range 14) 882 | -10/Materials | Learned location of 2 exits from Mines 902 | -10/Materials | Discovered new exit (range 9) 931 | -10/Materials | Learned Storage trap positions 968 | -10/Materials | Identified exit to Mines 968 | -10/Materials | Identified exit to Materials 968 | -10/Materials | Identified exit to Subcaves 997 | -10/Materials | Learned Storage security intel 1016 | -10/Materials | Loaded intel: 34 machine locations 1023 | -10/Materials | Learned Storage emergency access door positions 1042 | -10/Materials | Learned Storage emergency access door positions 1070 | -10/Materials | Learned 2 Mines zone layouts 1285 | -10/Materials | Central database locked down 1550 | -10/Materials | Entered Mines 1551 | -10/Mines | Assembled infested the area 1556 | -10/Mines | Assisted by a Guerilla fighting off Assembled 1581 | -10/Mines | Learned Materials stockpile data 1613 | -10/Mines | Destroyed 7 combat bots 1626 | -10/Mines | Assisted by bots powering up and referring to "LRC-V3" 1712 | -10/Mines | Discovered exit to Materials (range 7) 1732 | -10/Mines | Entered Materials 1732 | -9/Materials | Accompanied by 3 allies 1732 | -9/Materials | Evolved 2 slots: Propulsion x1, Utility x1 2002 | -9/Materials | Central database locked down 2126 | -9/Materials | Identified exit to Mines 2263 | -9/Materials | Build established: Scavenger-Mutant 2477 | -9/Materials | Discovered new exit (range 3) 2549 | -9/Materials | Learned location of 1 exit from Storage 2622 | -9/Materials | Identified exit to Materials 2674 | -9/Materials | Build established: Mutant 2684 | -9/Materials | Learned location of Mines (-9) 2804 | -9/Materials | Learned location of 1 exit from Storage 2885 | -9/Materials | Learned location of Zion (-7) 2899 | -9/Materials | Entered Mines 2996 | -9/Mines | Excavation squad dispatched 2996 | -9/Mines | A large section of the Mines collapsed 3017 | -9/Mines | Deemed a non-threat by the Exiles lab entrance 3017 | -9/Mines | Discovered new exit (range 5) 3025 | -9/Mines | Entered Exiles 3025 | -9/Exiles | Found Exiles lab destroyed 3440 | -9/Exiles | Opened EX-Vault 3448 | -9/Exiles | Found Trap Reconfigurator 3602 | -9/Exiles | Discovered new exit (range 10) 3614 | -9/Exiles | Entered Mines 3614 | -8/Mines | Accompanied by 3 allies 3831 | -8/Mines | Entered Materials 3831 | -8/Materials | Accompanied by 1 ally 3831 | -8/Materials | Evolved 2 slots: Propulsion x1, Utility x1 3907 | -8/Materials | Identified exit to Garrison 3922 | -8/Materials | Entered Garrison 3922 | -8/Garrison | Accompanied by 1 ally 3948 | -8/Garrison | Discovered new exit (range 47) 3948 | -8/Garrison | Discovered new exit (range 87) 3948 | -8/Garrison | Discovered new exit (range 49) 3996 | -8/Garrison | Triggered checkpoint 4124 | -8/Garrison | Spotted B-75 Beast 4292 | -8/Garrison | Triggered checkpoint 4305 | -8/Garrison | Garrison Relay disabled 4393 | -8/Garrison | Attempted to access garrison exit controls, blocked by remote lockdown 4728 | -8/Garrison | Attempted to access garrison exit controls, blocked by remote lockdown 4786 | -8/Garrison | Triggered checkpoint 4817 | -8/Garrison | Triggered checkpoint 4975 | -8/Garrison | Entered Materials 4975 | -8/Materials | Accompanied by 3 allies 5037 | -8/Materials | Discovered new exit (range 15) 5129 | -8/Materials | Entered Storage 5129 | -8/Storage | Accompanied by 3 allies 5130 | -8/Storage | Identified exit to Recycling 5130 | -8/Storage | Identified exit to Factory 5131 | -8/Storage | Loaded intel: 9 trap records 5354 | -8/Storage | Assisted by bots powering up and referring to "LRC-V3" 5529 | -8/Storage | First assault squad dispatched 5597 | -8/Storage | Lost 10 allies 5699 | -8/Storage | Destroyed 11 combat bots 5706 | -8/Storage | Lost 3 parts (1p1u1w) 5918 | -8/Storage | Repaired Scythe 5964 | -8/Storage | Hacking Suite fried by hacking feedback 6372 | -8/Storage | Repaired Wave Gun 6383 | -8/Storage | Used back door to open Recycling access 6390 | -8/Storage | Entered Recycling 6918 | -8/Recycling | Learned Storage trap positions 6919 | -8/Recycling | Discovered new exit (range 16) 6984 | -8/Recycling | Learned Factory emergency access door positions 7084 | -8/Recycling | Learned 4 Lower Caves zone layouts 7122 | -8/Recycling | Learned Factory security intel 7169 | -8/Recycling | Learned Storage emergency access door positions 7227 | -8/Recycling | Identified exit to Scraptown 7247 | -8/Recycling | Scanned before Scraplab entrance 7271 | -8/Recycling | Entered Scraplab 7286 | -8/Recycling | Entered Scraptown 7286 | -8/Scraptown | System corruption cleaned by C-Scrubber 7343 | -8/Scraptown | Visited Fellowship of the Rings 7378 | -8/Scraptown | Visited Awakened 7409 | -8/Scraptown | Visited UFD Registry 7409 | -8/Scraptown | Registered with UFD as "Nukemaster" 7434 | -8/Scraptown | Visited The Evicted 7472 | -8/Scraptown | Visited SPCMW 7485 | -8/Scraptown | Visited Comm Corps 7621 | -8/Scraptown | Visited Science Guys 7711 | -8/Scraptown | Visited Abandonware Association 7731 | -8/Scraptown | Learned abandonware demo "REPAIR.EXE" 7830 | -8/Scraptown | Visited LU-1G1's Boring Crew 7895 | -8/Scraptown | Visited Scrapoid Pod Storage 7920 | -8/Scraptown | Visited Supply Room 7949 | -8/Scraptown | Visited Observation Area 8039 | -8/Scraptown | Visited Derelict Rescue Squad 8049 | -8/Scraptown | Found DRS Beacon 8122 | -8/Scraptown | Visited Infowarlord's Domain 8129 | -8/Scraptown | Found Exp. Sensor Array 8543 | -8/Scraptown | Discovered new exit (range 3) 8548 | -8/Scraptown | Entered Factory 8548 | -6/Factory | Evolved 4 slots: Power x1, Propulsion x1, Utility x2 8549 | -6/Factory | Identified exit to Extension 8751 | -6/Factory | Spotted B-75 Beast 8839 | -6/Factory | Build established: Hacker-Mutant 9135 | -6/Factory | Discovered new exit (range 9) 9142 | -6/Factory | Entered another Factory area 9142 | -5/Factory | Evolved 2 slots: Propulsion x1, Utility x1 9227 | -5/Factory | Spotted B-75 Beast 9351 | -5/Factory | Found Prototype Launcher 9351 | -5/Factory | Identified Mni. Smartbomb Launcher 9354 | -5/Factory | Found Mni. Smartbomb Launcher 9439 | -5/Factory | Identified exit to Upper Caves 9510 | -5/Factory | Learned location of 2 exits from Proximity Caves 9563 | -5/Factory | Repaired Exp. Sensor Array? 9571 | -5/Factory | Learned location of Upper Caves (-5) 9584 | -5/Factory | Build established: Mutant 9615 | -5/Factory | Entered Upper Caves 9679 | -5/Upper Caves | Learned location of 1 exit from Factory 9679 | -5/Upper Caves | Learned 6 Lower Caves zone layouts 9757 | -5/Upper Caves | Attracted the attention of an 0b10 checkpoint 9779 | -5/Upper Caves | Destroyed 9 combat bots 9801 | -5/Upper Caves | Identified exit to Upper Caves 9905 | -5/Upper Caves | Entered another Upper Caves area 9906 | -5/Upper Caves | Discovered new exit (range 15) 9918 | -5/Upper Caves | Activated DRS Beacon 10023 | -5/Upper Caves | Found Alien Artifact 10023 | -5/Upper Caves | Identified Dimensional Node Initializer 10023 | -5/Upper Caves | Initialized slip node 10096 | -5/Upper Caves | Spotted B-75 Beast 10246 | -5/Upper Caves | Destroyed B-75 Beast 10260 | -5/Upper Caves | Learned Factory terminal intel 10271 | -5/Upper Caves | Discovered new exit (range 7) 10275 | -5/Upper Caves | Attracted the attention of an 0b10 outpost 10275 | -5/Upper Caves | Entered Zhirov 10275 | -5/Zhirov | Discovered new exit (range 3) 10287 | -5/Zhirov | Met Zhirov 10298 | -5/Zhirov | Learned location of Testing (-2) 10298 | -5/Zhirov | Learned location of Command (-1) 10303 | -5/Zhirov | Zhirov requested help retrieving the SGEMP Prototype 10313 | -5/Zhirov | Found Alien Artifact 10313 | -5/Zhirov | Identified Integrated Dissipator 10313 | -5/Zhirov | Installed Integrated Dissipator, increased core heat dissipation (+20) 10371 | -5/Zhirov | Found Alien Artifact 10395 | -5/Zhirov | Entered Proximity Caves 10396 | -4/Proximity Caves | Identified exit to Factory 10426 | -4/Proximity Caves | Learned location of 1 exit from Proximity Caves 10448 | -4/Proximity Caves | Spotted B-86 Titan 10572 | -4/Proximity Caves | Entered Factory 10572 | -4/Factory | Evolved 2 slots: Utility x2 10573 | -4/Factory | Identified exit to Research 10574 | -4/Factory | Loaded intel: 26 terminal locations 10595 | -4/Factory | Discovered exit to Research (range 26) 10903 | -4/Factory | Fabricated Exp. Optical Array? 10932 | -4/Factory | Repaired Lgt. Antimatter Reactor 11079 | -4/Factory | Scrapoid reinforcements arrived 11216 | -4/Factory | Lost 3 parts (3u) 11269 | -4/Factory | Discovered new exit (range 21) 11279 | -4/Factory | Identified exit to Upper Caves 11303 | -4/Factory | Entered Upper Caves 11491 | -4/Upper Caves | Found DCF Scrap (13 items) 11506 | -4/Upper Caves | Attracted the attention of an 0b10 outpost 11515 | -4/Upper Caves | Build established: Hacker-Ninja 11515 | -4/Upper Caves | Ambushed by wild Derelicts 11778 | -4/Upper Caves | Discovered new exit (range 5) 11780 | -4/Upper Caves | Identified exit to Upper Caves 11810 | -4/Upper Caves | Entered another Upper Caves area 11819 | -4/Upper Caves | Discovered exit to Research (range 6) 11825 | -4/Upper Caves | Encountered a Warlord checkpoint 12450 | -4/Upper Caves | Discovered new exit (range 22) 12470 | -4/Upper Caves | Identified exit to Warlord 12471 | -4/Upper Caves | Entered Warlord 12646 | -4/Warlord | Visited the Vortex Lab 12651 | -4/Warlord | Found Prototype Energy Gun 12651 | -4/Warlord | Identified Vortex Rifle 12655 | -4/Warlord | Found Prototype Energy Cannon 12655 | -4/Warlord | Identified Vortex Driver 12658 | -4/Warlord | Found Vortex Driver 12666 | -4/Warlord | Warlord's base attacked by MAIN.C 12677 | -4/Warlord | Build established: Trapper-Ninja 12813 | -4/Warlord | Rebuked by Warlord 12830 | -4/Warlord | Found Prototype Reactor 12830 | -4/Warlord | Identified Vortex Chain Reactor 12835 | -4/Warlord | Found Prototype Processor 12835 | -4/Warlord | Identified Exp. Targeting Computer 12841 | -4/Warlord | Found Prototype Hackware 12841 | -4/Warlord | Identified System Mapper 12850 | -4/Warlord | Found Spectral Analyzer 12915 | -4/Warlord | Attacked by Warlord forces 12924 | -4/Warlord | Spotted 5I-SKW(K) 12924 | -4/Warlord | Spotted YT-FX0(K) 12936 | -4/Warlord | Core integrity fell below 50% 12951 | -4/Warlord | Core integrity fell below 20% 12959 | -4/Warlord | Lost 5 allies 12964 | -4/Warlord | Destroyed by Dirty Bomb Trap Last Messages --------------- 12956_ Adv. Trap Extractor dropped Dirty Bomb Trap. 12956_ ANNOUNCEMENT: MAIN.C reinforcements approaching through caves, arriving soon. 12957_ Installed Dirty Bomb Trap. 12959_ Adv. Trap Extractor dropped Dirty Bomb Trap. 12959_ Installed Dirty Bomb Trap. 12961_ YT-FX0(K) triggered Dirty Bomb Trap. 12961_ An explosion rips through the floor. 12961_ Door malfunctions. 12962_ Adv. Trap Extractor dropped Dirty Bomb Trap. 12962_ Installed Dirty Bomb Trap. 12963_ Adv. Trap Extractor dropped Dirty Bomb Trap. 12964_ KTG-V3 triggered Dirty Bomb Trap. 12964_ An explosion rips through the floor. 12964_ KTG-V3 shuts down. 12964_ KTG-V3 destroyed. Map ----- +----------------------------------------------------+ | ??????# # #???# + | | #????????# / #???# # ^ ###/##### ### | | ########## # #???# ## # ## #?? | | # # #???######?# + ## #?? | | # # #??????????##### ## #?? | | # ##+########??????????????# ##+### | | + #?????????????????????# ## | | # #?????????????????????# ## | | # #############????????????######### | | # #??# #??????############### | | # #??# #??????# X#* ! ==## | | #####+#### #??# #??????# "!*! =## " | | ????# #??# #??# #??????# =## " | | ????# #??# #??# #??????# " ## " | | ????# #??# #??# #??????# # ! ## " | | ##### #??# #??# #??????# ####"##### " | | / ##?# #??# #??????# """" ""## | | # #?# #### #??????# "###### | | # #### # ##+#####+######### %%#????# | | ## GG/ !%] % #????# | | ## GG/ ]%]=""#????# | | ## / * [%[%"#????# | | ###### ########### ; K;### [[[[[]#????# | | * #????# #?????????# K; ## % *[!= #????# | | #????# #????????## %&; ##"""" "" "|!%#????# | | ?????# #????????#; @ ; ###############????# | | ###?????######????????## ###??????????????????# | | ???????????????????????#;;###????????????????????# | | ???????????????????????####??????????????????????# | | ?????????????????????????????????????????????????? | | ?????????????????????????????????????????????????? | | ?????????????????????????????????????????????????? | | ?????????????????????????????????????????????????? | | | | | | | | | | | | | | | | | | | | | | | | | | | | | | | | | | | +----------------------------------------------------+ Best States ------------- Heat Dissipation 94 Coolant Potential 120 Energy Generation 55 Energy Capacity 700 Matter Stores 300 Matter Capacity 300 Sight Range 24 Robot Scan Range 20 Terrain Scan Density 10 Jamming Range 16 Corruption Block 15 Armor Coverage 1200 Evasion (%) 55 Targeting Accuracy 12 Target Analysis 8 Core Analysis 6 Recoil Reduction 4 Offensive Hacking 22 Defensive Hacking 14 Authchip Count 2 Trap Extractor Capacity 8 Item Schematics ----------------- Hammer | -10/Materials | Hacked Flight Unit | -9/Materials | Hacked Hover Unit | -9/Materials | Hacked Assault Drone Bay | -5/Zhirov | Free Exp. Heat Sink | -5/Zhirov | Free Exp. Optical Array | -5/Zhirov | Free Imp. Arc Thrower | -5/Zhirov | Free Robot Schematics ------------------ None Fabricated ------------ Exp. Optical Array | x1 | -4/Factory Alien Tech Used ----------------- Dimensional Node Initializer Integrated Dissipator Achievements -------------- None Challenges ------------ None Game ------ Seed NovaEfficiencyMicrothruster Manual? 0 Play Time 02:14:59 Cumulative 378.1 hours Start 2024.09.21 @ 19:23:47 End 2024.09.27 @ 21:20:58 Sessions 3 Manual Loads 0 Difficulty Rogue Special Mode None Game No. 378 Rogue 373 Adventurer 5 Explorer 0 Win Type - Total 8 Types 5/0/0/3/0/0/0/0/0 Lore% 79 Gallery% 84 Achievement% 71 Wizard Run 0 Options --------- Layout 1 ASCII 0 Keyboard 0 Movement Mouse Keybinds 0 Fullscreen 1 Font 24/Terminus Map View 50x35 Zoom Use 0% Tactical HUD 1 Map Filters NONE Filters NONE Steam 1 RUN: d330a47c-b01d-4ffb-8833-bc293972bd9d